Workbook

Sheet Logique
A1: Département | B1: Entête | C1: Coordonnées LII étendu | D1: Fin | G1: Pour département 58 | H1: X | I1: Y
A2: 58 | B2: http://inventaire-forestier.ign.fr/cartov2/proxy/getTile?LAYERS=v58tf&TRANSPARENT=true&VISIBILITY=true&FORMAT=image%2FPNG&SERVICE=WMS&VERSION=1.1.1&REQUEST=GetMap&STYLES=&EXCEPTIONS=application%2Fvnd.ogc.se_inimage&SRS=EPSG%3A27572&BBOX= | D2: &WIDTH=1000&HEIGHT=1000 | G2: min | H2: 637459 | I2: 2182311
A3: 03 | B3: http://inventaire-forestier.ign.fr/cartov2/proxy/getTile?LAYERS=v03tf&TRANSPARENT=true&VISIBILITY=true&FORMAT=image%2FPNG&SERVICE=WMS&VERSION=1.1.1&REQUEST=GetMap&STYLES=&EXCEPTIONS=application%2Fvnd.ogc.se_inimage&SRS=EPSG%3A27572&BBOX= | D3: &WIDTH=1000&HEIGHT=1000 | G3: max | H3: 744704 | I3: 2288856
G4: Delta (km) | H4: =(H3-H2)/1000 -> 107.245 | I4: =(I3-I2)/1000 -> 106.545
G5: Surface | H5: =H4*I4 -> 11426.41853
G6: Le but est d'extraire des carrés de 1000 x 1000 m en définition 1000 x 1000 pixels
H9: X | I9: Y
G10: nouveau max | H10: =H2+(INT(H4)+1)*1000 -> 745459 | I10: =I2+(INT(I4)+1)*1000 -> 2289311
G11: Delta (mètres) | H11: =H10-H2 -> 108000 | I11: =I10-I2 -> 107000
G12: Nb delta 1000 | H12: =H11/1000 -> 108 | I12: =I11/1000 -> 107
G13: Nb images | H13: =H12*I12 -> 11556
G14: à 13 Ko l'image | H14: =H13*13 -> 150Ko
G15: en Mo | H15: =H14*1000/POWER(10,6) -> 150Mo
H16: for coordX = Xmin to (Xmax-1000) step 1000 | I16: for coordY = Ymin to (Ymax-1000) step 1000

Sheet Requêtes exemples
A1: http://inventaire-forestier.ign.fr/cartov2/proxy/getTile?LAYERS=v58tf&TRANSPARENT=true&VISIBILITY=true&FORMAT=image%2FPNG&SERVICE=WMS&VERSION=1.1.1&REQUEST=GetMap&STYLES=&EXCEPTIONS=application%2Fvnd.ogc.se_inimage&SRS=EPSG%3A27572&BBOX=644889.7737606274,2281227.7697849646,649299.4936016009,2285637.4896259382&WIDTH=500&HEIGHT=500
A2: http://inventaire-forestier.ign.fr/cartov2/proxy/getTile?LAYERS=v58tf&TRANSPARENT=true&VISIBILITY=true&FORMAT=image%2FPNG&SERVICE=WMS&VERSION=1.1.1&REQUEST=GetMap&STYLES=&EXCEPTIONS=application%2Fvnd.ogc.se_inimage&SRS=EPSG%3A27572&BBOX=640480.0539196539,2281227.7697849646,644889.7737606274,2285637.4896259382&WIDTH=500&HEIGHT=500
A3: http://inventaire-forestier.ign.fr/cartov2/proxy/getTile?LAYERS=v58tf&TRANSPARENT=true&VISIBILITY=true&FORMAT=image%2FPNG&SERVICE=WMS&VERSION=1.1.1&REQUEST=GetMap&STYLES=&EXCEPTIONS=application%2Fvnd.ogc.se_inimage&SRS=EPSG%3A27572&BBOX=636070.3340786804,2281227.7697849646,640480.0539196539,2285637.4896259382&WIDTH=500&HEIGHT=500
A4: http://inventaire-forestier.ign.fr/cartov2/proxy/getTile?LAYERS=v58tf&TRANSPARENT=true&VISIBILITY=true&FORMAT=image%2FPNG&SERVICE=WMS&VERSION=1.1.1&REQUEST=GetMap&STYLES=&EXCEPTIONS=application%2Fvnd.ogc.se_inimage&SRS=EPSG%3A27572&BBOX=640480.0539196539,2276818.049943991,644889.7737606274,2281227.7697849646&WIDTH=500&HEIGHT=500
A5: http://inventaire-forestier.ign.fr/cartov2/proxy/getTile?LAYERS=v58tf&TRANSPARENT=true&VISIBILITY=true&FORMAT=image%2FPNG&SERVICE=WMS&VERSION=1.1.1&REQUEST=GetMap&STYLES=&EXCEPTIONS=application%2Fvnd.ogc.se_inimage&SRS=EPSG%3A27572&BBOX=644889.7737606274,2276818.049943991,649299.4936016009,2281227.7697849646&WIDTH=500&HEIGHT=500
A6: http://inventaire-forestier.ign.fr/cartov2/proxy/getTile?LAYERS=v58tf&TRANSPARENT=true&VISIBILITY=true&FORMAT=image%2FPNG&SERVICE=WMS&VERSION=1.1.1&REQUEST=GetMap&STYLES=&EXCEPTIONS=application%2Fvnd.ogc.se_inimage&SRS=EPSG%3A27572&BBOX=649299.4936016009,2276818.049943991,653709.2134425744,2281227.7697849646&WIDTH=500&HEIGHT=500
A7: http://inventaire-forestier.ign.fr/cartov2/proxy/getTile?LAYERS=v58tf&TRANSPARENT=true&VISIBILITY=true&FORMAT=image%2FPNG&SERVICE=WMS&VERSION=1.1.1&REQUEST=GetMap&STYLES=&EXCEPTIONS=application%2Fvnd.ogc.se_inimage&SRS=EPSG%3A27572&BBOX=649299.4936016009,2281227.7697849646,653709.2134425744,2285637.4896259382&WIDTH=500&HEIGHT=500
A19: http://inventaire-forestier.ign.fr/cartov2/proxy/getTile?LAYERS=v58tf&TRANSPARENT=true&VISIBILITY=true&FORMAT=image%2FPNG&SERVICE=WMS&VERSION=1.1.1&REQUEST=GetMap&STYLES=&EXCEPTIONS=application%2Fvnd.ogc.se_inimage&SRS=EPSG%3A27572&BBOX=
K20: X | L20: Y | M20: X | N20: Y | O20: Delta X | P20: Delta Y
A21: 644889.7737606274,2281227.7697849646,649299.4936016009,2285637.4896259382 | B21: =SEARCH(",",$A21,1) -> 18 | C21: =SEARCH(",",$A21,B21+1) -> 37 | D21: =SEARCH(",",$A21,C21+1) -> 55 | E21: =LEN(A21) -> 73 | F21: =MID($A21,1,B21-1) -> 644889.7737606274 | G21: =MID($A21,B21+1,C21-B21-1) -> 2281227.7697849646 | H21: =MID($A21,C21+1,D21-C21-1) -> 649299.4936016009 | I21: =MID($A21,D21+1,E21-D21) -> 2285637.4896259382 | K21: 644889.7738 | L21: 2281227.77 | M21: 649299.4936 | N21: 2285637.49 | O21: =M21-K21 -> 4409.719841 | P21: =N21-L21 -> 4409.719841
A22: 640480.0539196539,2281227.7697849646,644889.7737606274,2285637.4896259382 | B22: =SEARCH(",",$A22,1) -> 18 | C22: =SEARCH(",",$A22,B22+1) -> 37 | D22: 55 | E22: =LEN(A22) -> 73 | F22: =MID($A22,1,B22-1) -> 640480.0539196539 | G22: =MID($A22,B22+1,C22-B22-1) -> 2281227.7697849646 | H22: 644889.7737606274 | I22: =MID($A22,D22+1,E22-D22) -> 2285637.4896259382 | K22: 640480.0539 | L22: 2281227.77 | M22: 644889.7738 | N22: 2285637.49 | O22: =M22-K22 -> 4409.719841 | P22: 4409.719841
A23: 636070.3340786804,2281227.7697849646,640480.0539196539,2285637.4896259382 | B23: 18 | C23: 37 | D23: 55 | E23: 73 | F23: 636070.3340786804 | G23: 2281227.7697849646 | H23: 640480.0539196539 | I23: 2285637.4896259382 | K23: 636070.3341 | L23: 2281227.77 | M23: 640480.0539 | N23: 2285637.49 | O23: 4409.719841 | P23: 4409.719841
A24: 640480.0539196539,2276818.049943991,644889.7737606274,2281227.7697849646 | B24: 18 | C24: 36 | D24: 54 | E24: 72 | F24: 640480.0539196539 | G24: 2276818.049943991 | H24: 644889.7737606274 | I24: 2281227.7697849646 | K24: 640480.0539 | L24: 2276818.05 | M24: 644889.7738 | N24: 2281227.77 | O24: 4409.719841 | P24: 4409.719841
A25: 644889.7737606274,2276818.049943991,649299.4936016009,2281227.7697849646 | B25: 18 | C25: 36 | D25: 54 | E25: 72 | F25: 644889.7737606274 | G25: 2276818.049943991 | H25: 649299.4936016009 | I25: 2281227.7697849646 | K25: 644889.7738 | L25: 2276818.05 | M25: 649299.4936 | N25: 2281227.77 | O25: 4409.719841 | P25: 4409.719841
A26: 649299.4936016009,2276818.049943991,653709.2134425744,2281227.7697849646 | B26: 18 | C26: 36 | D26: 54 | E26: 72 | F26: 649299.4936016009 | G26: 2276818.049943991 | H26: 653709.2134425744 | I26: 2281227.7697849646 | K26: 649299.4936 | L26: 2276818.05 | M26: 653709.2134 | N26: 2281227.77 | O26: 4409.719841 | P26: 4409.719841
A27: 649299.4936016009,2281227.7697849646,653709.2134425744,2285637.4896259382 | B27: 18 | C27: 37 | D27: 55 | E27: 73 | F27: 649299.4936016009 | G27: 2281227.7697849646 | H27: 653709.2134425744 | I27: 2285637.4896259382 | K27: 649299.4936 | L27: 2281227.77 | M27: 653709.2134 | N27: 2285637.49 | O27: 4409.719841 | P27: 4409.719841
O28: en mètres
A29: &WIDTH=500&HEIGHT=500
A33: http://inventaire-forestier.ign.fr/cartov2/proxy/getTile?LAYERS=v58tf&TRANSPARENT=true&VISIBILITY=true&FORMAT=image%2FPNG&SERVICE=WMS&VERSION=1.1.1&REQUEST=GetMap&STYLES=&EXCEPTIONS=application%2Fvnd.ogc.se_inimage&SRS=EPSG%3A27572&BBOX=640480.0539196541,2281227.769784965,642243.9418560435,2282991.6577213546&WIDTH=500&HEIGHT=500
A34: http://inventaire-forestier.ign.fr/cartov2/proxy/getTile?LAYERS=v58tf&TRANSPARENT=true&VISIBILITY=true&FORMAT=image%2FPNG&SERVICE=WMS&VERSION=1.1.1&REQUEST=GetMap&STYLES=&EXCEPTIONS=application%2Fvnd.ogc.se_inimage&SRS=EPSG%3A27572&BBOX=638716.1659832647,2281227.769784965,640480.0539196541,2282991.6577213546&WIDTH=500&HEIGHT=500
A35: http://inventaire-forestier.ign.fr/cartov2/proxy/getTile?LAYERS=v58tf&TRANSPARENT=true&VISIBILITY=true&FORMAT=image%2FPNG&SERVICE=WMS&VERSION=1.1.1&REQUEST=GetMap&STYLES=&EXCEPTIONS=application%2Fvnd.ogc.se_inimage&SRS=EPSG%3A27572&BBOX=636952.2780468753,2281227.769784965,638716.1659832647,2282991.6577213546&WIDTH=500&HEIGHT=500
A36: http://inventaire-forestier.ign.fr/cartov2/proxy/getTile?LAYERS=v58tf&TRANSPARENT=true&VISIBILITY=true&FORMAT=image%2FPNG&SERVICE=WMS&VERSION=1.1.1&REQUEST=GetMap&STYLES=&EXCEPTIONS=application%2Fvnd.ogc.se_inimage&SRS=EPSG%3A27572&BBOX=635188.3901104858,2281227.769784965,636952.2780468753,2282991.6577213546&WIDTH=500&HEIGHT=500
A37: http://inventaire-forestier.ign.fr/cartov2/proxy/getTile?LAYERS=v58tf&TRANSPARENT=true&VISIBILITY=true&FORMAT=image%2FPNG&SERVICE=WMS&VERSION=1.1.1&REQUEST=GetMap&STYLES=&EXCEPTIONS=application%2Fvnd.ogc.se_inimage&SRS=EPSG%3A27572&BBOX=635188.3901104858,2279463.8818485755,636952.2780468753,2281227.769784965&WIDTH=500&HEIGHT=500
A38: http://inventaire-forestier.ign.fr/cartov2/proxy/getTile?LAYERS=v58tf&TRANSPARENT=true&VISIBILITY=true&FORMAT=image%2FPNG&SERVICE=WMS&VERSION=1.1.1&REQUEST=GetMap&STYLES=&EXCEPTIONS=application%2Fvnd.ogc.se_inimage&SRS=EPSG%3A27572&BBOX=638716.1659832647,2279463.8818485755,640480.0539196541,2281227.769784965&WIDTH=500&HEIGHT=500
A39: http://inventaire-forestier.ign.fr/cartov2/proxy/getTile?LAYERS=v58tf&TRANSPARENT=true&VISIBILITY=true&FORMAT=image%2FPNG&SERVICE=WMS&VERSION=1.1.1&REQUEST=GetMap&STYLES=&EXCEPTIONS=application%2Fvnd.ogc.se_inimage&SRS=EPSG%3A27572&BBOX=640480.0539196541,2279463.8818485755,642243.9418560435,2281227.769784965&WIDTH=500&HEIGHT=500
A40: http://inventaire-forestier.ign.fr/cartov2/proxy/getTile?LAYERS=v58tf&TRANSPARENT=true&VISIBILITY=true&FORMAT=image%2FPNG&SERVICE=WMS&VERSION=1.1.1&REQUEST=GetMap&STYLES=&EXCEPTIONS=application%2Fvnd.ogc.se_inimage&SRS=EPSG%3A27572&BBOX=642243.9418560435,2279463.8818485755,644007.829792433,2281227.769784965&WIDTH=500&HEIGHT=500
A41: http://inventaire-forestier.ign.fr/cartov2/proxy/getTile?LAYERS=v58tf&TRANSPARENT=true&VISIBILITY=true&FORMAT=image%2FPNG&SERVICE=WMS&VERSION=1.1.1&REQUEST=GetMap&STYLES=&EXCEPTIONS=application%2Fvnd.ogc.se_inimage&SRS=EPSG%3A27572&BBOX=642243.9418560435,2281227.769784965,644007.829792433,2282991.6577213546&WIDTH=500&HEIGHT=500
A42: http://inventaire-forestier.ign.fr/cartov2/proxy/getTile?LAYERS=v58tf&TRANSPARENT=true&VISIBILITY=true&FORMAT=image%2FPNG&SERVICE=WMS&VERSION=1.1.1&REQUEST=GetMap&STYLES=&EXCEPTIONS=application%2Fvnd.ogc.se_inimage&SRS=EPSG%3A27572&BBOX=642243.9418560435,2282991.6577213546,644007.829792433,2284755.545657744&WIDTH=500&HEIGHT=500
A43: http://inventaire-forestier.ign.fr/cartov2/proxy/getTile?LAYERS=v58tf&TRANSPARENT=true&VISIBILITY=true&FORMAT=image%2FPNG&SERVICE=WMS&VERSION=1.1.1&REQUEST=GetMap&STYLES=&EXCEPTIONS=application%2Fvnd.ogc.se_inimage&SRS=EPSG%3A27572&BBOX=640480.0539196541,2282991.6577213546,642243.9418560435,2284755.545657744&WIDTH=500&HEIGHT=500
A44: http://inventaire-forestier.ign.fr/cartov2/proxy/getTile?LAYERS=v58tf&TRANSPARENT=true&VISIBILITY=true&FORMAT=image%2FPNG&SERVICE=WMS&VERSION=1.1.1&REQUEST=GetMap&STYLES=&EXCEPTIONS=application%2Fvnd.ogc.se_inimage&SRS=EPSG%3A27572&BBOX=638716.1659832647,2282991.6577213546,640480.0539196541,2284755.545657744&WIDTH=500&HEIGHT=500
A45: http://inventaire-forestier.ign.fr/cartov2/proxy/getTile?LAYERS=v58tf&TRANSPARENT=true&VISIBILITY=true&FORMAT=image%2FPNG&SERVICE=WMS&VERSION=1.1.1&REQUEST=GetMap&STYLES=&EXCEPTIONS=application%2Fvnd.ogc.se_inimage&SRS=EPSG%3A27572&BBOX=636952.2780468753,2282991.6577213546,638716.1659832647,2284755.545657744&WIDTH=500&HEIGHT=500
A46: http://inventaire-forestier.ign.fr/cartov2/proxy/getTile?LAYERS=v58tf&TRANSPARENT=true&VISIBILITY=true&FORMAT=image%2FPNG&SERVICE=WMS&VERSION=1.1.1&REQUEST=GetMap&STYLES=&EXCEPTIONS=application%2Fvnd.ogc.se_inimage&SRS=EPSG%3A27572&BBOX=635188.3901104858,2282991.6577213546,636952.2780468753,2284755.545657744&WIDTH=500&HEIGHT=500
A49: http://inventaire-forestier.ign.fr/cartov2/proxy/getTile?LAYERS=v58tf&TRANSPARENT=true&VISIBILITY=true&FORMAT=image%2FPNG&SERVICE=WMS&VERSION=1.1.1&REQUEST=GetMap&STYLES=&EXCEPTIONS=application%2Fvnd.ogc.se_inimage&SRS=EPSG%3A27572&BBOX=
K50: X | L50: Y | M50: X | N50: Y | O50: Delta X | P50: Delta Y
A51: 640480.0539196541,2281227.769784965,642243.9418560435,2282991.6577213546 | B51: =SEARCH(",",$A51,1) -> 18 | C51: =SEARCH(",",$A51,B51+1) -> 36 | D51: =SEARCH(",",$A51,C51+1) -> 54 | E51: =LEN(A51) -> 72 | F51: =MID($A51,1,B51-1) -> 640480.0539196541 | G51: =MID($A51,B51+1,C51-B51-1) -> 2281227.769784965 | H51: =MID($A51,C51+1,D51-C51-1) -> 642243.9418560435 | I51: =MID($A51,D51+1,E51-D51) -> 2282991.6577213546 | K51: 640480.0539 | L51: 2281227.77 | M51: 642243.9419 | N51: 2282991.658 | O51: =M51-K51 -> 1763.887936 | P51: =N51-L51 -> 1763.887936
A52: 638716.1659832647,2281227.769784965,640480.0539196541,2282991.6577213546 | B52: =SEARCH(",",$A52,1) -> 18 | C52: =SEARCH(",",$A52,B52+1) -> 36 | D52: 54 | E52: =LEN(A52) -> 72 | F52: =MID($A52,1,B52-1) -> 638716.1659832647 | G52: =MID($A52,B52+1,C52-B52-1) -> 2281227.769784965 | H52: 640480.0539196541 | I52: =MID($A52,D52+1,E52-D52) -> 2282991.6577213546 | K52: 638716.166 | L52: 2281227.77 | M52: 640480.0539 | N52: 2282991.658 | O52: =M52-K52 -> 1763.887936 | P52: 1763.887936
A53: 636952.2780468753,2281227.769784965,638716.1659832647,2282991.6577213546 | B53: 18 | C53: 36 | D53: 54 | E53: 72 | F53: 636952.2780468753 | G53: 2281227.769784965 | H53: 638716.1659832647 | I53: 2282991.6577213546 | K53: 636952.278 | L53: 2281227.77 | M53: 638716.166 | N53: 2282991.658 | O53: 1763.887936 | P53: 1763.887936
A54: 635188.3901104858,2281227.769784965,636952.2780468753,2282991.6577213546 | B54: 18 | C54: 36 | D54: 54 | E54: 72 | F54: 635188.3901104858 | G54: 2281227.769784965 | H54: 636952.2780468753 | I54: 2282991.6577213546 | K54: 635188.3901 | L54: 2281227.77 | M54: 636952.278 | N54: 2282991.658 | O54: 1763.887936 | P54: 1763.887936
A55: 635188.3901104858,2279463.8818485755,636952.2780468753,2281227.769784965 | B55: 18 | C55: 37 | D55: 55 | E55: 72 | F55: 635188.3901104858 | G55: 2279463.8818485755 | H55: 636952.2780468753 | I55: 2281227.769784965 | K55: 635188.3901 | L55: 2279463.882 | M55: 636952.278 | N55: 2281227.77 | O55: 1763.887936 | P55: 1763.887936
A56: 638716.1659832647,2279463.8818485755,640480.0539196541,2281227.769784965 | B56: 18 | C56: 37 | D56: 55 | E56: 72 | F56: 638716.1659832647 | G56: 2279463.8818485755 | H56: 640480.0539196541 | I56: 2281227.769784965 | K56: 638716.166 | L56: 2279463.882 | M56: 640480.0539 | N56: 2281227.77 | O56: 1763.887936 | P56: 1763.887936
A57: 640480.0539196541,2279463.8818485755,642243.9418560435,2281227.769784965 | B57: 18 | C57: 37 | D57: 55 | E57: 72 | F57: 640480.0539196541 | G57: 2279463.8818485755 | H57: 642243.9418560435 | I57: 2281227.769784965 | K57: 640480.0539 | L57: 2279463.882 | M57: 642243.9419 | N57: 2281227.77 | O57: 1763.887936 | P57: 1763.887936
A58: 642243.9418560435,2279463.8818485755,644007.829792433,2281227.769784965 | B58: 18 | C58: 37 | D58: 54 | E58: 71 | F58: 642243.9418560435 | G58: 2279463.8818485755 | H58: 644007.829792433 | I58: 2281227.769784965 | K58: 642243.9419 | L58: 2279463.882 | M58: 644007.8298 | N58: 2281227.77 | O58: 1763.887936 | P58: 1763.887936
A59: 642243.9418560435,2281227.769784965,644007.829792433,2282991.6577213546 | B59: 18 | C59: 36 | D59: 53 | E59: 71 | F59: 642243.9418560435 | G59: 2281227.769784965 | H59: 644007.829792433 | I59: 2282991.6577213546 | K59: 642243.9419 | L59: 2281227.77 | M59: 644007.8298 | N59: 2282991.658 | O59: 1763.887936 | P59: 1763.887936
A60: 642243.9418560435,2282991.6577213546,644007.829792433,2284755.545657744 | B60: 18 | C60: 37 | D60: 54 | E60: 71 | F60: 642243.9418560435 | G60: 2282991.6577213546 | H60: 644007.829792433 | I60: 2284755.545657744 | K60: 642243.9419 | L60: 2282991.658 | M60: 644007.8298 | N60: 2284755.546 | O60: 1763.887936 | P60: 1763.887936
A61: 640480.0539196541,2282991.6577213546,642243.9418560435,2284755.545657744 | B61: 18 | C61: 37 | D61: 55 | E61: 72 | F61: 640480.0539196541 | G61: 2282991.6577213546 | H61: 642243.9418560435 | I61: 2284755.545657744 | K61: 640480.0539 | L61: 2282991.658 | M61: 642243.9419 | N61: 2284755.546 | O61: 1763.887936 | P61: 1763.887936
A62: 638716.1659832647,2282991.6577213546,640480.0539196541,2284755.545657744 | B62: 18 | C62: 37 | D62: 55 | E62: 72 | F62: 638716.1659832647 | G62: 2282991.6577213546 | H62: 640480.0539196541 | I62: 2284755.545657744 | K62: 638716.166 | L62: 2282991.658 | M62: 640480.0539 | N62: 2284755.546 | O62: 1763.887936 | P62: 1763.887936
A63: 636952.2780468753,2282991.6577213546,638716.1659832647,2284755.545657744 | B63: 18 | C63: 37 | D63: 55 | E63: 72 | F63: 636952.2780468753 | G63: 2282991.6577213546 | H63: 638716.1659832647 | I63: 2284755.545657744 | K63: 636952.278 | L63: 2282991.658 | M63: 638716.166 | N63: 2284755.546 | O63: 1763.887936 | P63: 1763.887936
A64: 635188.3901104858,2282991.6577213546,636952.2780468753,2284755.545657744 | B64: 18 | C64: 37 | D64: 55 | E64: 72 | F64: 635188.3901104858 | G64: 2282991.6577213546 | H64: 636952.2780468753 | I64: =MID($A64,D64+1,E64-D64) -> 2284755.545657744 | K64: 635188.3901 | L64: 2282991.658 | M64: 636952.278 | N64: 2284755.546 | O64: 1763.887936 | P64: 1763.887936
O65: en mètres
A66: &WIDTH=500&HEIGHT=500
K67: =INT(K51) -> 640480 | L67: =INT(L51) -> 2281227 | M67: =K67+2000 -> 642480 | N67: =L67+2000 -> 2283227
K68: ="," -> ,
K69: =CONCATENATE(K67,K68,L67,K68,M67,K68,N67) -> 640480,2281227,642480,2283227
J71: http://inventaire-forestier.ign.fr/cartov2/proxy/getTile?LAYERS=v58tf&TRANSPARENT=true&VISIBILITY=true&FORMAT=image%2FPNG&SERVICE=WMS&VERSION=1.1.1&REQUEST=GetMap&STYLES=&EXCEPTIONS=application%2Fvnd.ogc.se_inimage&SRS=EPSG%3A27572&BBOX= | K71: 640480,2281227,642480,2283227 | L71: &WIDTH=1000&HEIGHT=1000 | M71: =CONCATENATE(J71,K71,L71) -> http://inventaire-forestier.ign.fr/cartov2/proxy/getTile?LAYERS=v58tf&TRANSPARENT=true&VISIBILITY=true&FORMAT=image%2FPNG&SERVICE=WMS&VERSION=1.1.1&REQUEST=GetMap&STYLES=&EXCEPTIONS=application%2Fvnd.ogc.se_inimage&SRS=EPSG%3A27572&BBOX=640480,2281227,642480,2283227&WIDTH=1000&HEIGHT=1000

Sheet LOG
A2: OpenLayers.Layer.WMS_2 | B2: OpenLayersDiv108png | C2: DOWNLOADED | D2: http://mapserv-3.ifn.fr/cgi-bin/tilecache?LAYERS=franceraster&TRANSPARENT=true&VISIBILITY=true&FORMAT=image%2FPNG&SERVICE=WMS&VERSION=1.1.1&REQUEST=GetMap&STYLES=&EXCEPTIONS=application%2Fvnd.ogc.se_inimage&SRS=EPSG%3A27572&BBOX=622841.17455576,2148936.17455576,711035.57137523,2237130.57137523&WIDTH=500&HEIGHT=500 | E2: 0
A3: OpenLayers.Layer.WMS_2 | B3: OpenLayersDiv111png | C3: DOWNLOADED | D3: http://mapserv-1.ifn.fr/cgi-bin/tilecache?LAYERS=franceraster&TRANSPARENT=true&VISIBILITY=true&FORMAT=image%2FPNG&SERVICE=WMS&VERSION=1.1.1&REQUEST=GetMap&STYLES=&EXCEPTIONS=application%2Fvnd.ogc.se_inimage&SRS=EPSG%3A27572&BBOX=711035.57137523,2148936.17455576,799229.9681947,2237130.57137523&WIDTH=500&HEIGHT=500 | E3: 0
A4: OpenLayers.Layer.WMS_2 | B4: OpenLayersDiv114png | C4: DOWNLOADED | D4: http://mapserv.ifn.fr/cgi-bin/tilecache?&SERVICE=WMS&VERSION=1.1.1&REQUEST=GetMap&LAYERS=franceraster&TRANSPARENT=true&VISIBILITY=true&FORMAT=image%2FPNG&STYLES=&EXCEPTIONS=application%2Fvnd.ogc.se_inimage&SRS=EPSG%3A27572&BBOX=799229.9681947,2148936.17455576,887424.36501417,2237130.57137523&WIDTH=500&HEIGHT=500 | E4: 0
A5: OpenLayers.Layer.WMS_2 | B5: OpenLayersDiv117png | C5: DOWNLOADED | D5: http://mapserv-1.ifn.fr/cgi-bin/tilecache?LAYERS=franceraster&TRANSPARENT=true&VISIBILITY=true&FORMAT=image%2FPNG&SERVICE=WMS&VERSION=1.1.1&REQUEST=GetMap&STYLES=&EXCEPTIONS=application%2Fvnd.ogc.se_inimage&SRS=EPSG%3A27572&BBOX=799229.9681947,2237130.57137523,887424.36501417,2325324.9681947&WIDTH=500&HEIGHT=500 | E5: 0
A6: OpenLayers.Layer.WMS_2 | B6: OpenLayersDiv120png | C6: DOWNLOADED | D6: http://mapserv-5.ifn.fr/cgi-bin/tilecache?LAYERS=franceraster&TRANSPARENT=true&VISIBILITY=true&FORMAT=image%2FPNG&SERVICE=WMS&VERSION=1.1.1&REQUEST=GetMap&STYLES=&EXCEPTIONS=application%2Fvnd.ogc.se_inimage&SRS=EPSG%3A27572&BBOX=711035.57137523,2237130.57137523,799229.9681947,2325324.9681947&WIDTH=500&HEIGHT=500 | E6: 0
A7: OpenLayers.Layer.WMS_2 | B7: OpenLayersDiv123png | C7: DOWNLOADED | D7: http://mapserv-6.ifn.fr/cgi-bin/tilecache?LAYERS=franceraster&TRANSPARENT=true&VISIBILITY=true&FORMAT=image%2FPNG&SERVICE=WMS&VERSION=1.1.1&REQUEST=GetMap&STYLES=&EXCEPTIONS=application%2Fvnd.ogc.se_inimage&SRS=EPSG%3A27572&BBOX=622841.17455576,2237130.57137523,711035.57137523,2325324.9681947&WIDTH=500&HEIGHT=500 | E7: 0
A8: OpenLayers.Layer.WMS_2 | B8: OpenLayersDiv126png | C8: DOWNLOADED | D8: http://mapserv-4.ifn.fr/cgi-bin/tilecache?LAYERS=franceraster&TRANSPARENT=true&VISIBILITY=true&FORMAT=image%2FPNG&SERVICE=WMS&VERSION=1.1.1&REQUEST=GetMap&STYLES=&EXCEPTIONS=application%2Fvnd.ogc.se_inimage&SRS=EPSG%3A27572&BBOX=534646.77773629,2237130.57137523,622841.17455576,2325324.9681947&WIDTH=500&HEIGHT=500 | E8: 0
A9: OpenLayers.Layer.WMS_2 | B9: OpenLayersDiv129png | C9: DOWNLOADED | D9: http://mapserv-6.ifn.fr/cgi-bin/tilecache?LAYERS=franceraster&TRANSPARENT=true&VISIBILITY=true&FORMAT=image%2FPNG&SERVICE=WMS&VERSION=1.1.1&REQUEST=GetMap&STYLES=&EXCEPTIONS=application%2Fvnd.ogc.se_inimage&SRS=EPSG%3A27572&BBOX=534646.77773629,2148936.17455576,622841.17455576,2237130.57137523&WIDTH=500&HEIGHT=500 | E9: 0
A10: OpenLayers.Layer.WMS_2 | B10: OpenLayersDiv132png | C10: DOWNLOADED | D10: http://mapserv-1.ifn.fr/cgi-bin/tilecache?LAYERS=franceraster&TRANSPARENT=true&VISIBILITY=true&FORMAT=image%2FPNG&SERVICE=WMS&VERSION=1.1.1&REQUEST=GetMap&STYLES=&EXCEPTIONS=application%2Fvnd.ogc.se_inimage&SRS=EPSG%3A27572&BBOX=534646.77773629,2060741.77773629,622841.17455576,2148936.17455576&WIDTH=500&HEIGHT=500 | E10: 0
A11: OpenLayers.Layer.WMS_2 | B11: OpenLayersDiv135png | C11: DOWNLOADED | D11: http://mapserv-4.ifn.fr/cgi-bin/tilecache?LAYERS=franceraster&TRANSPARENT=true&VISIBILITY=true&FORMAT=image%2FPNG&SERVICE=WMS&VERSION=1.1.1&REQUEST=GetMap&STYLES=&EXCEPTIONS=application%2Fvnd.ogc.se_inimage&SRS=EPSG%3A27572&BBOX=622841.17455576,2060741.77773629,711035.57137523,2148936.17455576&WIDTH=500&HEIGHT=500 | E11: 0
A12: OpenLayers.Layer.WMS_2 | B12: OpenLayersDiv138png | C12: DOWNLOADED | D12: http://mapserv-5.ifn.fr/cgi-bin/tilecache?LAYERS=franceraster&TRANSPARENT=true&VISIBILITY=true&FORMAT=image%2FPNG&SERVICE=WMS&VERSION=1.1.1&REQUEST=GetMap&STYLES=&EXCEPTIONS=application%2Fvnd.ogc.se_inimage&SRS=EPSG%3A27572&BBOX=711035.57137523,2060741.77773629,799229.9681947,2148936.17455576&WIDTH=500&HEIGHT=500 | E12: 0
A13: OpenLayers.Layer.WMS_2 | B13: OpenLayersDiv141png | C13: DOWNLOADED | D13: http://mapserv-2.ifn.fr/cgi-bin/tilecache?LAYERS=franceraster&TRANSPARENT=true&VISIBILITY=true&FORMAT=image%2FPNG&SERVICE=WMS&VERSION=1.1.1&REQUEST=GetMap&STYLES=&EXCEPTIONS=application%2Fvnd.ogc.se_inimage&SRS=EPSG%3A27572&BBOX=799229.9681947,2060741.77773629,887424.36501417,2148936.17455576&WIDTH=500&HEIGHT=500 | E13: 0
A14: OpenLayers.Layer.WMS_2 | B14: OpenLayersDiv144png | C14: DOWNLOADED | D14: http://mapserv-1.ifn.fr/cgi-bin/tilecache?LAYERS=franceraster&TRANSPARENT=true&VISIBILITY=true&FORMAT=image%2FPNG&SERVICE=WMS&VERSION=1.1.1&REQUEST=GetMap&STYLES=&EXCEPTIONS=application%2Fvnd.ogc.se_inimage&SRS=EPSG%3A27572&BBOX=887424.36501417,2060741.77773629,975618.7618336399,2148936.17455576&WIDTH=500&HEIGHT=500 | E14: 0
A15: OpenLayers.Layer.WMS_2 | B15: OpenLayersDiv147png | C15: DOWNLOADED | D15: http://mapserv-3.ifn.fr/cgi-bin/tilecache?LAYERS=franceraster&TRANSPARENT=true&VISIBILITY=true&FORMAT=image%2FPNG&SERVICE=WMS&VERSION=1.1.1&REQUEST=GetMap&STYLES=&EXCEPTIONS=application%2Fvnd.ogc.se_inimage&SRS=EPSG%3A27572&BBOX=887424.36501417,2148936.17455576,975618.7618336399,2237130.57137523&WIDTH=500&HEIGHT=500 | E15: 0
A16: OpenLayers.Layer.WMS_2 | B16: OpenLayersDiv150png | C16: DOWNLOADED | D16: http://mapserv-4.ifn.fr/cgi-bin/tilecache?LAYERS=franceraster&TRANSPARENT=true&VISIBILITY=true&FORMAT=image%2FPNG&SERVICE=WMS&VERSION=1.1.1&REQUEST=GetMap&STYLES=&EXCEPTIONS=application%2Fvnd.ogc.se_inimage&SRS=EPSG%3A27572&BBOX=887424.36501417,2237130.57137523,975618.7618336399,2325324.9681947&WIDTH=500&HEIGHT=500 | E16: 0
A17: OpenLayers.Layer.WMS_2 | B17: OpenLayersDiv153png | C17: DOWNLOADED | D17: http://mapserv-3.ifn.fr/cgi-bin/tilecache?LAYERS=franceraster&TRANSPARENT=true&VISIBILITY=true&FORMAT=image%2FPNG&SERVICE=WMS&VERSION=1.1.1&REQUEST=GetMap&STYLES=&EXCEPTIONS=application%2Fvnd.ogc.se_inimage&SRS=EPSG%3A27572&BBOX=887424.36501417,2325324.9681947,975618.7618336399,2413519.36501417&WIDTH=500&HEIGHT=500 | E17: 0
A18: OpenLayers.Layer.WMS_2 | B18: OpenLayersDiv156png | C18: DOWNLOADED | D18: http://mapserv-2.ifn.fr/cgi-bin/tilecache?LAYERS=franceraster&TRANSPARENT=true&VISIBILITY=true&FORMAT=image%2FPNG&SERVICE=WMS&VERSION=1.1.1&REQUEST=GetMap&STYLES=&EXCEPTIONS=application%2Fvnd.ogc.se_inimage&SRS=EPSG%3A27572&BBOX=799229.9681947,2325324.9681947,887424.36501417,2413519.36501417&WIDTH=500&HEIGHT=500 | E18: 0
A19: OpenLayers.Layer.WMS_2 | B19: OpenLayersDiv159png | C19: DOWNLOADED | D19: http://mapserv-8.ifn.fr/cgi-bin/tilecache?LAYERS=franceraster&TRANSPARENT=true&VISIBILITY=true&FORMAT=image%2FPNG&SERVICE=WMS&VERSION=1.1.1&REQUEST=GetMap&STYLES=&EXCEPTIONS=application%2Fvnd.ogc.se_inimage&SRS=EPSG%3A27572&BBOX=711035.57137523,2325324.9681947,799229.9681947,2413519.36501417&WIDTH=500&HEIGHT=500 | E19: 0
A20: OpenLayers.Layer.WMS_2 | B20: OpenLayersDiv162png | C20: DOWNLOADED | D20: http://mapserv-1.ifn.fr/cgi-bin/tilecache?LAYERS=franceraster&TRANSPARENT=true&VISIBILITY=true&FORMAT=image%2FPNG&SERVICE=WMS&VERSION=1.1.1&REQUEST=GetMap&STYLES=&EXCEPTIONS=application%2Fvnd.ogc.se_inimage&SRS=EPSG%3A27572&BBOX=622841.17455576,2325324.9681947,711035.57137523,2413519.36501417&WIDTH=500&HEIGHT=500 | E20: 0
A21: OpenLayers.Layer.WMS_2 | B21: OpenLayersDiv165png | C21: DOWNLOADED | D21: http://mapserv-7.ifn.fr/cgi-bin/tilecache?LAYERS=franceraster&TRANSPARENT=true&VISIBILITY=true&FORMAT=image%2FPNG&SERVICE=WMS&VERSION=1.1.1&REQUEST=GetMap&STYLES=&EXCEPTIONS=application%2Fvnd.ogc.se_inimage&SRS=EPSG%3A27572&BBOX=534646.77773629,2325324.9681947,622841.17455576,2413519.36501417&WIDTH=500&HEIGHT=500 | E21: 0
A22: OpenLayers.Layer.WMS_2 | B22: OpenLayersDiv310png | C22: DOWNLOADED | D22: http://mapserv-3.ifn.fr/cgi-bin/tilecache?LAYERS=franceraster&TRANSPARENT=true&VISIBILITY=true&FORMAT=image%2FPNG&SERVICE=WMS&VERSION=1.1.1&REQUEST=GetMap&STYLES=&EXCEPTIONS=application%2Fvnd.ogc.se_inimage&SRS=EPSG%3A27572&BBOX=622841.17455576,2148936.17455576,711035.57137523,2237130.57137523&WIDTH=500&HEIGHT=500 | E22: 0
A23: OpenLayers.Layer.WMS_2 | B23: OpenLayersDiv312png | C23: DOWNLOADED | D23: http://mapserv-1.ifn.fr/cgi-bin/tilecache?LAYERS=franceraster&TRANSPARENT=true&VISIBILITY=true&FORMAT=image%2FPNG&SERVICE=WMS&VERSION=1.1.1&REQUEST=GetMap&STYLES=&EXCEPTIONS=application%2Fvnd.ogc.se_inimage&SRS=EPSG%3A27572&BBOX=711035.57137523,2148936.17455576,799229.9681947,2237130.57137523&WIDTH=500&HEIGHT=500 | E23: 0
A24: OpenLayers.Layer.WMS_2 | B24: OpenLayersDiv314png | C24: DOWNLOADED | D24: http://mapserv.ifn.fr/cgi-bin/tilecache?&SERVICE=WMS&VERSION=1.1.1&REQUEST=GetMap&LAYERS=franceraster&TRANSPARENT=true&VISIBILITY=true&FORMAT=image%2FPNG&STYLES=&EXCEPTIONS=application%2Fvnd.ogc.se_inimage&SRS=EPSG%3A27572&BBOX=799229.9681947,2148936.17455576,887424.36501417,2237130.57137523&WIDTH=500&HEIGHT=500 | E24: 0
A25: OpenLayers.Layer.WMS_2 | B25: OpenLayersDiv316png | C25: DOWNLOADED | D25: http://mapserv-1.ifn.fr/cgi-bin/tilecache?LAYERS=franceraster&TRANSPARENT=true&VISIBILITY=true&FORMAT=image%2FPNG&SERVICE=WMS&VERSION=1.1.1&REQUEST=GetMap&STYLES=&EXCEPTIONS=application%2Fvnd.ogc.se_inimage&SRS=EPSG%3A27572&BBOX=799229.9681947,2237130.57137523,887424.36501417,2325324.9681947&WIDTH=500&HEIGHT=500 | E25: 0
A26: OpenLayers.Layer.WMS_2 | B26: OpenLayersDiv318png | C26: DOWNLOADED | D26: http://mapserv-5.ifn.fr/cgi-bin/tilecache?LAYERS=franceraster&TRANSPARENT=true&VISIBILITY=true&FORMAT=image%2FPNG&SERVICE=WMS&VERSION=1.1.1&REQUEST=GetMap&STYLES=&EXCEPTIONS=application%2Fvnd.ogc.se_inimage&SRS=EPSG%3A27572&BBOX=711035.57137523,2237130.57137523,799229.9681947,2325324.9681947&WIDTH=500&HEIGHT=500 | E26: 0
A27: OpenLayers.Layer.WMS_2 | B27: OpenLayersDiv320png | C27: DOWNLOADED | D27: http://mapserv-6.ifn.fr/cgi-bin/tilecache?LAYERS=franceraster&TRANSPARENT=true&VISIBILITY=true&FORMAT=image%2FPNG&SERVICE=WMS&VERSION=1.1.1&REQUEST=GetMap&STYLES=&EXCEPTIONS=application%2Fvnd.ogc.se_inimage&SRS=EPSG%3A27572&BBOX=622841.17455576,2237130.57137523,711035.57137523,2325324.9681947&WIDTH=500&HEIGHT=500 | E27: 0
A28: OpenLayers.Layer.WMS_2 | B28: OpenLayersDiv322png | C28: DOWNLOADED | D28: http://mapserv-4.ifn.fr/cgi-bin/tilecache?LAYERS=franceraster&TRANSPARENT=true&VISIBILITY=true&FORMAT=image%2FPNG&SERVICE=WMS&VERSION=1.1.1&REQUEST=GetMap&STYLES=&EXCEPTIONS=application%2Fvnd.ogc.se_inimage&SRS=EPSG%3A27572&BBOX=534646.77773629,2237130.57137523,622841.17455576,2325324.9681947&WIDTH=500&HEIGHT=500 | E28: 0
A32: OpenLayers.Layer.WMS_10 | B32: OpenLayersDiv247png | C32: DOWNLOADED | D32: http://mapserv-4.ifn.fr/cgi-bin/tilecache?LAYERS=departements&TRANSPARENT=true&VISIBILITY=true&FORMAT=image%2FPNG&SERVICE=WMS&VERSION=1.1.1&REQUEST=GetMap&STYLES=&EXCEPTIONS=application%2Fvnd.ogc.se_inimage&SRS=EPSG%3A27572&BBOX=622841.17455576,2148936.17455576,711035.57137523,2237130.57137523&WIDTH=500&HEIGHT=500 | E32: 0
A33: OpenLayers.Layer.WMS_10 | B33: OpenLayersDiv249png | C33: DOWNLOADED | D33: http://mapserv-5.ifn.fr/cgi-bin/tilecache?LAYERS=departements&TRANSPARENT=true&VISIBILITY=true&FORMAT=image%2FPNG&SERVICE=WMS&VERSION=1.1.1&REQUEST=GetMap&STYLES=&EXCEPTIONS=application%2Fvnd.ogc.se_inimage&SRS=EPSG%3A27572&BBOX=711035.57137523,2148936.17455576,799229.9681947,2237130.57137523&WIDTH=500&HEIGHT=500 | E33: 0
A34: OpenLayers.Layer.WMS_10 | B34: OpenLayersDiv251png | C34: DOWNLOADED | D34: http://mapserv-8.ifn.fr/cgi-bin/tilecache?LAYERS=departements&TRANSPARENT=true&VISIBILITY=true&FORMAT=image%2FPNG&SERVICE=WMS&VERSION=1.1.1&REQUEST=GetMap&STYLES=&EXCEPTIONS=application%2Fvnd.ogc.se_inimage&SRS=EPSG%3A27572&BBOX=799229.9681947,2148936.17455576,887424.36501417,2237130.57137523&WIDTH=500&HEIGHT=500 | E34: 0
A35: OpenLayers.Layer.WMS_10 | B35: OpenLayersDiv253png | C35: DOWNLOADED | D35: http://mapserv-7.ifn.fr/cgi-bin/tilecache?LAYERS=departements&TRANSPARENT=true&VISIBILITY=true&FORMAT=image%2FPNG&SERVICE=WMS&VERSION=1.1.1&REQUEST=GetMap&STYLES=&EXCEPTIONS=application%2Fvnd.ogc.se_inimage&SRS=EPSG%3A27572&BBOX=799229.9681947,2237130.57137523,887424.36501417,2325324.9681947&WIDTH=500&HEIGHT=500 | E35: 0
A36: OpenLayers.Layer.WMS_10 | B36: OpenLayersDiv255png | C36: DOWNLOADED | D36: http://mapserv-5.ifn.fr/cgi-bin/tilecache?LAYERS=departements&TRANSPARENT=true&VISIBILITY=true&FORMAT=image%2FPNG&SERVICE=WMS&VERSION=1.1.1&REQUEST=GetMap&STYLES=&EXCEPTIONS=application%2Fvnd.ogc.se_inimage&SRS=EPSG%3A27572&BBOX=711035.57137523,2237130.57137523,799229.9681947,2325324.9681947&WIDTH=500&HEIGHT=500 | E36: 0
A37: OpenLayers.Layer.WMS_10 | B37: OpenLayersDiv257png | C37: DOWNLOADED | D37: http://mapserv-3.ifn.fr/cgi-bin/tilecache?LAYERS=departements&TRANSPARENT=true&VISIBILITY=true&FORMAT=image%2FPNG&SERVICE=WMS&VERSION=1.1.1&REQUEST=GetMap&STYLES=&EXCEPTIONS=application%2Fvnd.ogc.se_inimage&SRS=EPSG%3A27572&BBOX=622841.17455576,2237130.57137523,711035.57137523,2325324.9681947&WIDTH=500&HEIGHT=500 | E37: 0
A38: OpenLayers.Layer.WMS_10 | B38: OpenLayersDiv259png | C38: DOWNLOADED | D38: http://mapserv-5.ifn.fr/cgi-bin/tilecache?LAYERS=departements&TRANSPARENT=true&VISIBILITY=true&FORMAT=image%2FPNG&SERVICE=WMS&VERSION=1.1.1&REQUEST=GetMap&STYLES=&EXCEPTIONS=application%2Fvnd.ogc.se_inimage&SRS=EPSG%3A27572&BBOX=534646.77773629,2237130.57137523,622841.17455576,2325324.9681947&WIDTH=500&HEIGHT=500 | E38: 0
A39: OpenLayers.Layer.WMS_10 | B39: OpenLayersDiv261png | C39: DOWNLOADED | D39: http://mapserv-6.ifn.fr/cgi-bin/tilecache?LAYERS=departements&TRANSPARENT=true&VISIBILITY=true&FORMAT=image%2FPNG&SERVICE=WMS&VERSION=1.1.1&REQUEST=GetMap&STYLES=&EXCEPTIONS=application%2Fvnd.ogc.se_inimage&SRS=EPSG%3A27572&BBOX=534646.77773629,2148936.17455576,622841.17455576,2237130.57137523&WIDTH=500&HEIGHT=500 | E39: 0
A40: OpenLayers.Layer.WMS_10 | B40: OpenLayersDiv263png | C40: DOWNLOADED | D40: http://mapserv-3.ifn.fr/cgi-bin/tilecache?LAYERS=departements&TRANSPARENT=true&VISIBILITY=true&FORMAT=image%2FPNG&SERVICE=WMS&VERSION=1.1.1&REQUEST=GetMap&STYLES=&EXCEPTIONS=application%2Fvnd.ogc.se_inimage&SRS=EPSG%3A27572&BBOX=534646.77773629,2060741.77773629,622841.17455576,2148936.17455576&WIDTH=500&HEIGHT=500 | E40: 0
A41: OpenLayers.Layer.WMS_10 | B41: OpenLayersDiv265png | C41: DOWNLOADED | D41: http://mapserv-3.ifn.fr/cgi-bin/tilecache?LAYERS=departements&TRANSPARENT=true&VISIBILITY=true&FORMAT=image%2FPNG&SERVICE=WMS&VERSION=1.1.1&REQUEST=GetMap&STYLES=&EXCEPTIONS=application%2Fvnd.ogc.se_inimage&SRS=EPSG%3A27572&BBOX=622841.17455576,2060741.77773629,711035.57137523,2148936.17455576&WIDTH=500&HEIGHT=500 | E41: 0
A42: OpenLayers.Layer.WMS_10 | B42: OpenLayersDiv267png | C42: DOWNLOADED | D42: http://mapserv.ifn.fr/cgi-bin/tilecache?&SERVICE=WMS&VERSION=1.1.1&REQUEST=GetMap&LAYERS=departements&TRANSPARENT=true&VISIBILITY=true&FORMAT=image%2FPNG&STYLES=&EXCEPTIONS=application%2Fvnd.ogc.se_inimage&SRS=EPSG%3A27572&BBOX=711035.57137523,2060741.77773629,799229.9681947,2148936.17455576&WIDTH=500&HEIGHT=500 | E42: 0
A43: OpenLayers.Layer.WMS_10 | B43: OpenLayersDiv269png | C43: DOWNLOADED | D43: http://mapserv-6.ifn.fr/cgi-bin/tilecache?LAYERS=departements&TRANSPARENT=true&VISIBILITY=true&FORMAT=image%2FPNG&SERVICE=WMS&VERSION=1.1.1&REQUEST=GetMap&STYLES=&EXCEPTIONS=application%2Fvnd.ogc.se_inimage&SRS=EPSG%3A27572&BBOX=799229.9681947,2060741.77773629,887424.36501417,2148936.17455576&WIDTH=500&HEIGHT=500 | E43: 0
A44: OpenLayers.Layer.WMS_10 | B44: OpenLayersDiv271png | C44: DOWNLOADED | D44: http://mapserv-6.ifn.fr/cgi-bin/tilecache?LAYERS=departements&TRANSPARENT=true&VISIBILITY=true&FORMAT=image%2FPNG&SERVICE=WMS&VERSION=1.1.1&REQUEST=GetMap&STYLES=&EXCEPTIONS=application%2Fvnd.ogc.se_inimage&SRS=EPSG%3A27572&BBOX=887424.36501417,2060741.77773629,975618.7618336399,2148936.17455576&WIDTH=500&HEIGHT=500 | E44: 0
A45: OpenLayers.Layer.WMS_10 | B45: OpenLayersDiv273png | C45: DOWNLOADED | D45: http://mapserv-8.ifn.fr/cgi-bin/tilecache?LAYERS=departements&TRANSPARENT=true&VISIBILITY=true&FORMAT=image%2FPNG&SERVICE=WMS&VERSION=1.1.1&REQUEST=GetMap&STYLES=&EXCEPTIONS=application%2Fvnd.ogc.se_inimage&SRS=EPSG%3A27572&BBOX=887424.36501417,2148936.17455576,975618.7618336399,2237130.57137523&WIDTH=500&HEIGHT=500 | E45: 0
A46: OpenLayers.Layer.WMS_10 | B46: OpenLayersDiv275png | C46: DOWNLOADED | D46: http://mapserv-7.ifn.fr/cgi-bin/tilecache?LAYERS=departements&TRANSPARENT=true&VISIBILITY=true&FORMAT=image%2FPNG&SERVICE=WMS&VERSION=1.1.1&REQUEST=GetMap&STYLES=&EXCEPTIONS=application%2Fvnd.ogc.se_inimage&SRS=EPSG%3A27572&BBOX=887424.36501417,2237130.57137523,975618.7618336399,2325324.9681947&WIDTH=500&HEIGHT=500 | E46: 0
A47: OpenLayers.Layer.WMS_10 | B47: OpenLayersDiv277png | C47: DOWNLOADED | D47: http://mapserv-4.ifn.fr/cgi-bin/tilecache?LAYERS=departements&TRANSPARENT=true&VISIBILITY=true&FORMAT=image%2FPNG&SERVICE=WMS&VERSION=1.1.1&REQUEST=GetMap&STYLES=&EXCEPTIONS=application%2Fvnd.ogc.se_inimage&SRS=EPSG%3A27572&BBOX=887424.36501417,2325324.9681947,975618.7618336399,2413519.36501417&WIDTH=500&HEIGHT=500 | E47: 0
A48: OpenLayers.Layer.WMS_10 | B48: OpenLayersDiv279png | C48: DOWNLOADED | D48: http://mapserv-4.ifn.fr/cgi-bin/tilecache?LAYERS=departements&TRANSPARENT=true&VISIBILITY=true&FORMAT=image%2FPNG&SERVICE=WMS&VERSION=1.1.1&REQUEST=GetMap&STYLES=&EXCEPTIONS=application%2Fvnd.ogc.se_inimage&SRS=EPSG%3A27572&BBOX=799229.9681947,2325324.9681947,887424.36501417,2413519.36501417&WIDTH=500&HEIGHT=500 | E48: 0
A49: OpenLayers.Layer.WMS_10 | B49: OpenLayersDiv281png | C49: DOWNLOADED | D49: http://mapserv-1.ifn.fr/cgi-bin/tilecache?LAYERS=departements&TRANSPARENT=true&VISIBILITY=true&FORMAT=image%2FPNG&SERVICE=WMS&VERSION=1.1.1&REQUEST=GetMap&STYLES=&EXCEPTIONS=application%2Fvnd.ogc.se_inimage&SRS=EPSG%3A27572&BBOX=711035.57137523,2325324.9681947,799229.9681947,2413519.36501417&WIDTH=500&HEIGHT=500 | E49: 0
A50: OpenLayers.Layer.WMS_10 | B50: OpenLayersDiv283png | C50: DOWNLOADED | D50: http://mapserv-7.ifn.fr/cgi-bin/tilecache?LAYERS=departements&TRANSPARENT=true&VISIBILITY=true&FORMAT=image%2FPNG&SERVICE=WMS&VERSION=1.1.1&REQUEST=GetMap&STYLES=&EXCEPTIONS=application%2Fvnd.ogc.se_inimage&SRS=EPSG%3A27572&BBOX=622841.17455576,2325324.9681947,711035.57137523,2413519.36501417&WIDTH=500&HEIGHT=500 | E50: 0
A51: OpenLayers.Layer.WMS_10 | B51: OpenLayersDiv285png | C51: DOWNLOADED | D51: http://mapserv-2.ifn.fr/cgi-bin/tilecache?LAYERS=departements&TRANSPARENT=true&VISIBILITY=true&FORMAT=image%2FPNG&SERVICE=WMS&VERSION=1.1.1&REQUEST=GetMap&STYLES=&EXCEPTIONS=application%2Fvnd.ogc.se_inimage&SRS=EPSG%3A27572&BBOX=534646.77773629,2325324.9681947,622841.17455576,2413519.36501417&WIDTH=500&HEIGHT=500 | E51: 0
A54: OpenLayers.Layer.WMS_6 | B54: OpenLayersDiv187png | C54: FAIL | D54: http://inventaire-forestier.ign.fr/cartov2/proxy/getTile?LAYERS=v58tf&TRANSPARENT=true&VISIBILITY=true&FORMAT=image%2FPNG&SERVICE=WMS&VERSION=1.1.1&REQUEST=GetMap&STYLES=&EXCEPTIONS=application%2Fvnd.ogc.se_inimage&SRS=EPSG%3A27572&BBOX=622841.17455576,2148936.17455576,711035.57137523,2237130.57137523&WIDTH=500&HEIGHT=500 | E54: -2146697210
A55: OpenLayers.Layer.WMS_6 | B55: OpenLayersDiv189png | C55: FAIL | D55: http://inventaire-forestier.ign.fr/cartov2/proxy/getTile?LAYERS=v58tf&TRANSPARENT=true&VISIBILITY=true&FORMAT=image%2FPNG&SERVICE=WMS&VERSION=1.1.1&REQUEST=GetMap&STYLES=&EXCEPTIONS=application%2Fvnd.ogc.se_inimage&SRS=EPSG%3A27572&BBOX=711035.57137523,2148936.17455576,799229.9681947,2237130.57137523&WIDTH=500&HEIGHT=500 | E55: -2146697210
A56: OpenLayers.Layer.WMS_6 | B56: OpenLayersDiv191png | C56: FAIL | D56: http://inventaire-forestier.ign.fr/cartov2/proxy/getTile?LAYERS=v58tf&TRANSPARENT=true&VISIBILITY=true&FORMAT=image%2FPNG&SERVICE=WMS&VERSION=1.1.1&REQUEST=GetMap&STYLES=&EXCEPTIONS=application%2Fvnd.ogc.se_inimage&SRS=EPSG%3A27572&BBOX=799229.9681947,2148936.17455576,887424.36501417,2237130.57137523&WIDTH=500&HEIGHT=500 | E56: -2146697210
A57: OpenLayers.Layer.WMS_6 | B57: OpenLayersDiv193png | C57: FAIL | D57: http://inventaire-forestier.ign.fr/cartov2/proxy/getTile?LAYERS=v58tf&TRANSPARENT=true&VISIBILITY=true&FORMAT=image%2FPNG&SERVICE=WMS&VERSION=1.1.1&REQUEST=GetMap&STYLES=&EXCEPTIONS=application%2Fvnd.ogc.se_inimage&SRS=EPSG%3A27572&BBOX=799229.9681947,2237130.57137523,887424.36501417,2325324.9681947&WIDTH=500&HEIGHT=500 | E57: -2146697210
A58: OpenLayers.Layer.WMS_6 | B58: OpenLayersDiv195png | C58: FAIL | D58: http://inventaire-forestier.ign.fr/cartov2/proxy/getTile?LAYERS=v58tf&TRANSPARENT=true&VISIBILITY=true&FORMAT=image%2FPNG&SERVICE=WMS&VERSION=1.1.1&REQUEST=GetMap&STYLES=&EXCEPTIONS=application%2Fvnd.ogc.se_inimage&SRS=EPSG%3A27572&BBOX=711035.57137523,2237130.57137523,799229.9681947,2325324.9681947&WIDTH=500&HEIGHT=500 | E58: -2146697210
A59: OpenLayers.Layer.WMS_6 | B59: OpenLayersDiv197png | C59: FAIL | D59: http://inventaire-forestier.ign.fr/cartov2/proxy/getTile?LAYERS=v58tf&TRANSPARENT=true&VISIBILITY=true&FORMAT=image%2FPNG&SERVICE=WMS&VERSION=1.1.1&REQUEST=GetMap&STYLES=&EXCEPTIONS=application%2Fvnd.ogc.se_inimage&SRS=EPSG%3A27572&BBOX=622841.17455576,2237130.57137523,711035.57137523,2325324.9681947&WIDTH=500&HEIGHT=500 | E59: -2146697210
A60: OpenLayers.Layer.WMS_6 | B60: OpenLayersDiv199png | C60: FAIL | D60: http://inventaire-forestier.ign.fr/cartov2/proxy/getTile?LAYERS=v58tf&TRANSPARENT=true&VISIBILITY=true&FORMAT=image%2FPNG&SERVICE=WMS&VERSION=1.1.1&REQUEST=GetMap&STYLES=&EXCEPTIONS=application%2Fvnd.ogc.se_inimage&SRS=EPSG%3A27572&BBOX=534646.77773629,2237130.57137523,622841.17455576,2325324.9681947&WIDTH=500&HEIGHT=500 | E60: -2146697210
A61: OpenLayers.Layer.WMS_6 | B61: OpenLayersDiv201png | C61: FAIL | D61: http://inventaire-forestier.ign.fr/cartov2/proxy/getTile?LAYERS=v58tf&TRANSPARENT=true&VISIBILITY=true&FORMAT=image%2FPNG&SERVICE=WMS&VERSION=1.1.1&REQUEST=GetMap&STYLES=&EXCEPTIONS=application%2Fvnd.ogc.se_inimage&SRS=EPSG%3A27572&BBOX=534646.77773629,2148936.17455576,622841.17455576,2237130.57137523&WIDTH=500&HEIGHT=500 | E61: -2146697210
A62: OpenLayers.Layer.WMS_6 | B62: OpenLayersDiv203png | C62: FAIL | D62: http://inventaire-forestier.ign.fr/cartov2/proxy/getTile?LAYERS=v58tf&TRANSPARENT=true&VISIBILITY=true&FORMAT=image%2FPNG&SERVICE=WMS&VERSION=1.1.1&REQUEST=GetMap&STYLES=&EXCEPTIONS=application%2Fvnd.ogc.se_inimage&SRS=EPSG%3A27572&BBOX=534646.77773629,2060741.77773629,622841.17455576,2148936.17455576&WIDTH=500&HEIGHT=500 | E62: -2146697210
A63: OpenLayers.Layer.WMS_6 | B63: OpenLayersDiv205png | C63: FAIL | D63: http://inventaire-forestier.ign.fr/cartov2/proxy/getTile?LAYERS=v58tf&TRANSPARENT=true&VISIBILITY=true&FORMAT=image%2FPNG&SERVICE=WMS&VERSION=1.1.1&REQUEST=GetMap&STYLES=&EXCEPTIONS=application%2Fvnd.ogc.se_inimage&SRS=EPSG%3A27572&BBOX=622841.17455576,2060741.77773629,711035.57137523,2148936.17455576&WIDTH=500&HEIGHT=500 | E63: -2146697210
A64: OpenLayers.Layer.WMS_6 | B64: OpenLayersDiv207png | C64: FAIL | D64: http://inventaire-forestier.ign.fr/cartov2/proxy/getTile?LAYERS=v58tf&TRANSPARENT=true&VISIBILITY=true&FORMAT=image%2FPNG&SERVICE=WMS&VERSION=1.1.1&REQUEST=GetMap&STYLES=&EXCEPTIONS=application%2Fvnd.ogc.se_inimage&SRS=EPSG%3A27572&BBOX=711035.57137523,2060741.77773629,799229.9681947,2148936.17455576&WIDTH=500&HEIGHT=500 | E64: -2146697210
A65: OpenLayers.Layer.WMS_6 | B65: OpenLayersDiv209png | C65: FAIL | D65: http://inventaire-forestier.ign.fr/cartov2/proxy/getTile?LAYERS=v58tf&TRANSPARENT=true&VISIBILITY=true&FORMAT=image%2FPNG&SERVICE=WMS&VERSION=1.1.1&REQUEST=GetMap&STYLES=&EXCEPTIONS=application%2Fvnd.ogc.se_inimage&SRS=EPSG%3A27572&BBOX=799229.9681947,2060741.77773629,887424.36501417,2148936.17455576&WIDTH=500&HEIGHT=500 | E65: -2146697210
A66: OpenLayers.Layer.WMS_6 | B66: OpenLayersDiv211png | C66: FAIL | D66: http://inventaire-forestier.ign.fr/cartov2/proxy/getTile?LAYERS=v58tf&TRANSPARENT=true&VISIBILITY=true&FORMAT=image%2FPNG&SERVICE=WMS&VERSION=1.1.1&REQUEST=GetMap&STYLES=&EXCEPTIONS=application%2Fvnd.ogc.se_inimage&SRS=EPSG%3A27572&BBOX=887424.36501417,2060741.77773629,975618.7618336399,2148936.17455576&WIDTH=500&HEIGHT=500 | E66: -2146697210
A67: OpenLayers.Layer.WMS_6 | B67: OpenLayersDiv213png | C67: FAIL | D67: http://inventaire-forestier.ign.fr/cartov2/proxy/getTile?LAYERS=v58tf&TRANSPARENT=true&VISIBILITY=true&FORMAT=image%2FPNG&SERVICE=WMS&VERSION=1.1.1&REQUEST=GetMap&STYLES=&EXCEPTIONS=application%2Fvnd.ogc.se_inimage&SRS=EPSG%3A27572&BBOX=887424.36501417,2148936.17455576,975618.7618336399,2237130.57137523&WIDTH=500&HEIGHT=500 | E67: -2146697210
A68: OpenLayers.Layer.WMS_6 | B68: OpenLayersDiv215png | C68: FAIL | D68: http://inventaire-forestier.ign.fr/cartov2/proxy/getTile?LAYERS=v58tf&TRANSPARENT=true&VISIBILITY=true&FORMAT=image%2FPNG&SERVICE=WMS&VERSION=1.1.1&REQUEST=GetMap&STYLES=&EXCEPTIONS=application%2Fvnd.ogc.se_inimage&SRS=EPSG%3A27572&BBOX=887424.36501417,2237130.57137523,975618.7618336399,2325324.9681947&WIDTH=500&HEIGHT=500 | E68: -2146697210
A69: OpenLayers.Layer.WMS_6 | B69: OpenLayersDiv217png | C69: FAIL | D69: http://inventaire-forestier.ign.fr/cartov2/proxy/getTile?LAYERS=v58tf&TRANSPARENT=true&VISIBILITY=true&FORMAT=image%2FPNG&SERVICE=WMS&VERSION=1.1.1&REQUEST=GetMap&STYLES=&EXCEPTIONS=application%2Fvnd.ogc.se_inimage&SRS=EPSG%3A27572&BBOX=887424.36501417,2325324.9681947,975618.7618336399,2413519.36501417&WIDTH=500&HEIGHT=500 | E69: -2146697210
A70: OpenLayers.Layer.WMS_6 | B70: OpenLayersDiv219png | C70: FAIL | D70: http://inventaire-forestier.ign.fr/cartov2/proxy/getTile?LAYERS=v58tf&TRANSPARENT=true&VISIBILITY=true&FORMAT=image%2FPNG&SERVICE=WMS&VERSION=1.1.1&REQUEST=GetMap&STYLES=&EXCEPTIONS=application%2Fvnd.ogc.se_inimage&SRS=EPSG%3A27572&BBOX=799229.9681947,2325324.9681947,887424.36501417,2413519.36501417&WIDTH=500&HEIGHT=500 | E70: -2146697210
A71: OpenLayers.Layer.WMS_6 | B71: OpenLayersDiv221png | C71: FAIL | D71: http://inventaire-forestier.ign.fr/cartov2/proxy/getTile?LAYERS=v58tf&TRANSPARENT=true&VISIBILITY=true&FORMAT=image%2FPNG&SERVICE=WMS&VERSION=1.1.1&REQUEST=GetMap&STYLES=&EXCEPTIONS=application%2Fvnd.ogc.se_inimage&SRS=EPSG%3A27572&BBOX=711035.57137523,2325324.9681947,799229.9681947,2413519.36501417&WIDTH=500&HEIGHT=500 | E71: -2146697210
A72: OpenLayers.Layer.WMS_6 | B72: OpenLayersDiv223png | C72: FAIL | D72: http://inventaire-forestier.ign.fr/cartov2/proxy/getTile?LAYERS=v58tf&TRANSPARENT=true&VISIBILITY=true&FORMAT=image%2FPNG&SERVICE=WMS&VERSION=1.1.1&REQUEST=GetMap&STYLES=&EXCEPTIONS=application%2Fvnd.ogc.se_inimage&SRS=EPSG%3A27572&BBOX=622841.17455576,2325324.9681947,711035.57137523,2413519.36501417&WIDTH=500&HEIGHT=500 | E72: -2146697210
A73: OpenLayers.Layer.WMS_6 | B73: OpenLayersDiv225png | C73: FAIL | D73: http://inventaire-forestier.ign.fr/cartov2/proxy/getTile?LAYERS=v58tf&TRANSPARENT=true&VISIBILITY=true&FORMAT=image%2FPNG&SERVICE=WMS&VERSION=1.1.1&REQUEST=GetMap&STYLES=&EXCEPTIONS=application%2Fvnd.ogc.se_inimage&SRS=EPSG%3A27572&BBOX=534646.77773629,2325324.9681947,622841.17455576,2413519.36501417&WIDTH=500&HEIGHT=500 | E73: -2146697210
